bitfinex/quotes_ETHUSD_20220109
["timestamp","ask_amount","ask_price","bid_price","bid_amount"]
[1641696275101,1.0,3146.8,3145.3,0.01258075]
[1641696275501,3.521,3147.3,3145.4,0.01421058]
[1641696275703,1.3,3147.2,3145.4,2.07168225]
[1641696275900,1.6,3147.2,3145.4,2.07168225]
[1641696276101,1.35373133,3146.6,3145.4,1.97111383]
[1641696276602,0.00568423,3146.5,3145.8,1.41346557]
[1641696276804,0.6,3147.2,3145.8,1.41346557]
[1641696276805,1.97208,3147.7,3145.9,2.10670105]
[1641696277001,1.97208,3147.7,3145.9,2.11011159]
[1641696277202,1.41613601,3146.6,3145.9,2.19756399]
[1641696277399,1.41613601,3146.6,3145.9,2.08140958]
[1641696277601,0.0022737,3146.9,3145.9,0.00341054]
[1641696278057,0.00170528,3146.8,3145.9,3.0]
[1641696278448,0.00113685,3146.7,3146.0,0.00284211]
[1641696278648,1.23183941,3146.6,3146.0,0.00284211]
[1641696279052,0.6,3146.6,3145.7,1.41346557]
[1641696279252,0.382,3146.5,3146.0,0.00284212]
[1641696279452,5.2,3146.4,3145.7,1.41346557]
[1641696279650,1.28577732,3146.3,3144.9,2.25]
[1641696279850,1.28577732,3146.3,3145.8,0.00113685]
[1641696279851,1.23577732,3146.3,3145.8,0.00113685]
[1641696280153,1.71037751,3146.0,3144.9,0.00625266]
[1641696280351,0.3,3145.9,3144.9,0.00625266]
[1641696280550,2.39237751,3146.0,3144.9,0.00625266]
[1641696281153,0.3,3146.0,3144.7,0.00738951]
[1641696281350,0.3,3146.0,3144.4,0.13819997]
[1641696281351,0.682,3146.0,3144.5,0.00966319]
[1641696281550,0.7954,3145.9,3144.5,0.00966319]
[1641696281797,1.59076,3145.9,3144.5,0.00966319]
[1641696282195,1.59076,3145.9,3144.5,3.59057333]
[1641696282196,1.89076,3145.9,3144.5,3.59057333]
[1641696282496,0.79538,3145.2,3144.6,0.00909477]
[1641696282696,1.59075,3145.5,3144.6,0.00909477]
[1641696282899,0.79547,3145.5,3144.6,0.00909477]
[1641696283103,1.30390789,3145.3,3144.6,0.00909477]
[1641696283298,1.68590789,3145.3,3144.5,0.00966319]
[1641696283501,1.59124,3144.6,3144.5,0.00966319]
[1641696284099,0.00211515,3145.1,3144.5,0.00966319]
[1641696284300,3.97803,3145.2,3144.2,0.01136846]
[1641696284502,3.97803,3145.2,3144.2,2.37031816]
[1641696284700,1.59124,3144.6,3144.5,3.58091014]
[1641696284901,5.2,3144.7,3144.3,0.01080004]
[1641696285101,0.382,3144.6,3144.5,0.00966319]
[1641696285300,1.382,3144.6,3143.7,0.01421058]
[1641696285557,0.382,3144.6,3143.7,0.01421058]
[1641696285950,0.332,3144.6,3143.7,0.01421058]
[1641696286351,1.59126,3144.4,3143.7,0.01421058]
[1641696286551,0.332,3144.6,3143.6,0.01477901]
[1641696286952,0.79573,3144.4,3143.6,0.01477901]
[1641696287157,0.332,3144.6,3143.6,2.08687982]
[1641696287352,0.332,3144.6,3143.6,2.08678659]
[1641696287353,0.00397897,3144.3,3143.6,2.08678659]
[1641696287553,0.79559,3144.2,3143.5,2.69994585]
[1641696287753,0.79900055,3144.2,3143.6,3.0]
[1641696287954,0.00284212,3144.1,3143.6,3.0]
[1641696288152,0.332,3144.6,3143.6,3.0]
[1641696288153,1.0,3144.7,3143.6,3.0]
[1641696288353,1.0,3144.7,3143.7,0.00227369]
[1641696288354,2.47764,3144.7,3143.7,0.00227369]
[1641696288553,0.00113685,3144.3,3143.7,0.00227369]
[1641696289156,0.93313685,3144.7,3143.6,0.00284212]
[1641696289414,1.93313685,3144.7,3143.6,0.00397897]
[1641696289615,0.79568,3143.9,3143.6,0.00397897]
[1641696289817,0.79568,3143.9,3143.5,2.65392482]
[1641696290217,0.00113685,3143.8,3143.5,2.65392482]
[1641696291417,0.17881685,3143.9,3143.5,2.65392482]
[1641696291617,0.96623309,3144.3,3143.7,3.67428807]
[1641696291917,0.00113685,3144.0,3143.6,0.00113685]
[1641696292120,0.382,3143.9,3143.6,0.00113685]
[1641696292323,0.00113685,3144.0,3143.6,0.00113685]
[1641696292517,0.79556,3144.3,3143.6,0.00113685]
[1641696292717,0.79556,3144.3,3143.6,0.0022737]
[1641696292916,0.00113685,3144.2,3143.6,0.0022737]
[1641696293352,0.79562,3144.7,3143.6,2.37571582]
[1641696293550,0.79562,3144.7,3143.6,2.37685267]
[1641696293750,0.79846211,3144.7,3143.7,0.00284212]
[1641696294149,1.59122,3144.4,3143.8,2.4]
[1641696294356,0.382,3145.5,3144.0,0.01228217]
[1641696294552,0.382,3145.5,3144.7,0.0126042]
[1641696294553,1.21252407,3145.5,3144.7,0.0126042]
[1641696294752,0.00113685,3144.9,3144.7,0.0126042]
[1641696295352,0.00113685,3144.9,3144.1,0.00341054]
[1641696295555,0.00113685,3144.9,3144.1,2.35050212]
[1641696295755,0.00113685,3144.9,3144.1,0.00341054]
[1641696296055,0.00113685,3144.9,3143.9,2.35914203]
[1641696296056,0.00113685,3144.9,3144.0,0.00397896]
[1641696296653,0.00113685,3144.9,3144.1,1.47174404]
[1641696296654,0.79545,3144.7,3144.1,1.47174404]
[1641696296899,1.59099,3144.8,3144.1,1.47174404]
[1641696297098,1.59099,3144.8,3144.2,0.00284211]
[1641696297500,1.59099,3144.8,3144.2,1.47458615]
[1641696297901,0.79551,3144.4,3144.3,0.00227369]
[1641696298700,0.79551,3144.4,3144.2,0.00284211]
[1641696299500,0.76026931,3144.8,3144.2,0.00284211]
[1641696299901,0.76026931,3144.8,3143.9,0.00454739]
[1641696300116,0.79557,3144.1,3143.9,0.00454739]
[1641696300760,0.74557,3144.1,3143.6,2.34617242]
[1641696301061,0.79546,3144.6,3144.0,2.1]
[1641696301262,0.00113685,3144.9,3144.3,0.8268502]
[1641696301660,0.00113685,3144.9,3144.4,0.00170527]
[1641696302666,0.00113685,3144.9,3144.3,0.01274226]
[1641696302862,0.00113685,3144.9,3144.4,0.00170527]
[1641696303663,0.00113685,3144.9,3144.4,2.09851181]
[1641696304062,0.00113685,3144.9,3144.5,0.00113684]
[1641696304063,0.79642685,3144.9,3144.5,0.00113684]
[1641696304502,0.00113685,3144.9,3144.5,0.00113684]
[1641696304702,2.38588,3145.7,3144.5,0.00113684]
[1641696305003,0.00284212,3145.4,3144.5,0.00227369]
[1641696305401,0.00227369,3145.3,3144.4,0.00284212]
[1641696305804,0.79533,3144.6,3144.4,0.00284212]
[1641696307409,4.2,3144.5,3143.5,2.65392482]
[1641696307709,0.79561,3143.6,3143.5,4.12566886]
[1641696308154,0.79561,3143.6,3143.5,4.13078467]
[1641696308551,0.79561,3143.6,3143.5,2.65904063]
[1641696309254,0.8270243,3143.6,3143.5,2.65904063]
[1641696309453,0.382,3144.3,3143.5,2.65904063]
[1641696309852,0.382,3144.3,3143.6,0.00454739]
[1641696310054,2.38691,3143.8,3143.6,0.00454739]
[1641696310453,2.38691,3143.8,3143.6,2.3576849]
[1641696310454,0.79559,3143.7,3143.6,2.3576849]
[1641696310655,2.38682,3144.4,3143.6,2.3576849]
[1641696310858,2.38682,3144.4,3143.6,3.3327849]
[1641696311052,2.38682,3144.4,3143.7,0.00397896]
[1641696311462,0.79525,3144.9,3143.7,0.38597896]
[1641696311653,0.00341054,3145.0,3143.8,2.34036674]
[1641696311909,6.27596748,3145.6,3143.8,2.34036674]
[1641696311910,0.0022737,3144.8,3143.8,2.34377728]
[1641696312108,0.00284212,3144.9,3143.9,0.00284212]
[1641696312309,0.79715527,3144.7,3143.9,0.00284212]
[1641696312509,0.79544,3144.1,3143.9,0.00284212]
[1641696312913,2.3865,3144.8,3143.7,0.00397896]
[1641696313308,0.00170527,3144.7,3143.6,0.00454739]
[1641696313711,0.79561,3143.8,3143.6,0.00454739]
[1641696319301,0.79561,3143.8,3143.6,2.23805095]
[1641696319501,0.79544,3144.0,3143.6,0.00454739]
[1641696319702,0.00170527,3144.7,3143.8,0.67930062]
[1641696319900,0.00170527,3144.7,3143.7,0.2768]
[1641696320101,0.0314143,3143.9,3143.8,7.54036674]
[1641696320304,0.00113685,3144.6,3143.9,5.2]
[1641696320602,1.18202198,3146.4,3143.9,5.2]
[1641696320603,0.382,3146.6,3144.5,0.01215984]
[1641696320806,0.79507,3146.5,3144.5,0.99465984]
[1641696321002,0.00170527,3145.0,3144.6,2.34036674]
[1641696321405,3.685e-05,3144.9,3144.7,2.18110845]
[1641696321603,3.685e-05,3144.9,3144.8,7.84036674]
[1641696321802,0.79495,3145.9,3144.8,8.14036674]
[1641696322002,0.79495,3145.9,3144.9,1.0]
[1641696322203,0.00515266,3145.8,3145.0,2.34036674]
[1641696322402,0.00515266,3145.8,3145.0,2.94036674]
[1641696322604,0.00458424,3145.7,3145.1,1.90711138]
[1641696322803,0.00458424,3145.7,3145.2,2.55741688]
[1641696323070,0.00401581,3145.6,3145.2,2.55741688]
[1641696323457,0.00344739,3145.5,3145.2,2.85741688]
[1641696323857,0.00287897,3145.4,3145.2,2.85741688]
[1641696324057,0.00287897,3145.4,3145.3,5.41250523]
[1641696324257,0.79496,3145.9,3145.3,5.41250523]
[1641696324656,0.00515266,3145.8,3145.3,6.20745953]
[1641696325056,0.79496,3145.9,3145.3,6.20745953]
[1641696325057,0.00458424,3145.7,3145.3,6.20745953]
[1641696325459,0.00401581,3145.6,3145.3,3.10745953]
[1641696325860,0.00344739,3145.5,3145.3,3.10745953]
[1641696326062,0.00344739,3145.5,3145.4,5.11929386]
[1641696326260,0.79496,3145.9,3145.4,5.11929386]
[1641696326808,1.59025,3145.5,3145.1,1.92704509]
[1641696327008,1.59025,3145.5,3144.7,1.47284404]
[1641696327206,1.59025,3145.5,3144.8,1.96746458]
[1641696327207,0.00287897,3145.4,3144.8,1.96746458]
[1641696327408,0.00287897,3145.4,3144.7,1.47284404]
[1641696327609,0.00231054,3145.3,3144.8,1.95605718]
[1641696328012,0.00174212,3145.2,3144.8,1.95605718]
[1641696328411,0.79519,3145.0,3144.8,1.95605718]
[1641696328611,0.0011737,3145.1,3144.8,1.95605718]
[1641696331355,0.0011737,3145.1,3144.8,0.6]
[1641696332153,0.0011737,3145.1,3144.7,1.83555549]
[1641696332354,0.0011737,3145.1,3144.8,0.6]
[1641696332553,0.0011737,3145.1,3144.8,0.3]
[1641696332754,0.0011737,3145.1,3144.8,0.6]
[1641696335710,0.0011737,3145.1,3144.9,2.81280815]
[1641696335909,0.0011737,3145.1,3145.0,18.68]
[1641696336111,2.3359337,3146.9,3145.1,5.2]
[1641696336313,2.2859337,3146.9,3145.2,2.66391974]
[1641696336509,0.0096632,3146.8,3145.2,2.66391974]
[1641696336709,0.79496,3145.8,3145.3,1.99151169]
[1641696336909,0.79496,3145.8,3145.4,2.18276314]
[1641696337109,0.00341054,3145.7,3145.4,2.18276314]
[1641696337508,0.00284211,3145.6,3145.4,2.18276314]
[1641696337708,0.00284211,3145.6,3145.1,2.06346267]
[1641696337909,2.38507,3146.5,3144.9,2.23014326]
[1641696337910,0.79509,3145.3,3144.9,2.23014326]
[1641696338161,0.79509,3145.3,3144.7,0.165]
[1641696338162,0.00227369,3145.5,3144.8,0.99897562]
[1641696338359,0.382,3146.3,3144.8,0.99897562]
[1641696338556,0.382,3146.3,3144.9,1.9962299]
[1641696338557,0.00170527,3145.4,3144.9,1.9962299]
[1641696338758,0.382,3145.9,3144.9,0.00113685]
[1641696338962,1.59061,3145.2,3144.9,0.00113685]
[1641696339157,0.79513,3145.1,3144.8,0.00170527]
[1641696339358,1.59056,3145.7,3144.8,0.00170527]
[1641696339757,0.00284211,3145.6,3144.8,0.00170527]
[1641696340158,0.382,3145.9,3144.9,5.2]
[1641696340357,1.59023,3145.5,3145.0,2.18096832]
[1641696340558,1.59023,3145.5,3145.0,0.00284212]
[1641696340760,0.00170527,3145.8,3145.1,0.00227369]
[1641696340959,0.00170527,3145.8,3145.1,1.29320716]
[1641696341161,0.00113685,3145.7,3145.2,2.50074237]
[1641696341360,0.00113685,3145.7,3145.3,0.7949764]
[1641696341562,1.58998,3146.1,3145.4,2.41298962]
[1641696341809,0.00625266,3146.6,3145.4,2.41298962]
[1641696342011,0.00284212,3146.0,3145.3,0.00113685]
[1641696342209,0.00568423,3146.5,3145.3,0.00113685]
[1641696342411,1.59235369,3145.9,3144.7,0.00454739]
[1641696342609,1.59008,3145.9,3144.7,0.00454739]
[1641696342809,1.59008,3145.9,3144.7,2.23108564]
[1641696343008,1.59008,3145.9,3144.8,2.70183663]
[1641696343209,1.59008,3145.9,3144.8,3.30581559]
[1641696343409,1.59008,3145.9,3144.9,0.00341054]
[1641696343810,0.79503,3145.7,3144.9,0.00341054]
[1641696344012,0.00625266,3146.6,3145.1,0.01239262]
[1641696344411,0.00568423,3146.5,3145.2,0.13990524]
[1641696344610,0.00568423,3146.5,3145.2,2.99826008]
[1641696344810,0.00511581,3146.4,3145.3,0.00113685]
[1641696345010,0.00511581,3146.4,3145.8,0.85591064]
[1641696345217,0.00454739,3146.3,3145.9,2.02426862]
[1641696345662,0.00397896,3146.2,3145.7,2.19605513]
[1641696346064,0.00341054,3146.1,3145.7,2.19605513]
[1641696346260,0.00341054,3146.1,3145.7,3.00447547]
[1641696346463,0.79488,3146.3,3145.8,4.2]
[1641696346663,0.79488,3146.3,3145.9,2.05272716]
[1641696347066,0.00341054,3146.6,3145.9,2.05272716]
[1641696347467,1.54254212,3146.7,3145.9,2.05272716]
[1641696347468,0.00284211,3146.5,3145.9,2.05272716]
[1641696347668,0.79487,3146.3,3145.8,0.79601495]
[1641696347865,0.79487,3146.3,3145.9,1.95090863]
[1641696348071,0.00113684,3146.2,3145.9,1.95090863]
[1641696348467,1.54254212,3146.7,3145.9,1.95090863]
[1641696348667,1.54254212,3146.7,3146.0,0.00113685]
[1641696348869,0.0022737,3146.6,3146.0,0.00113685]
[1641696349304,0.00170527,3146.5,3146.0,0.00113685]
[1641696349708,0.00113685,3146.4,3146.0,0.00113685]
[1641696349907,0.79487,3146.3,3146.0,0.00113685]
[1641696350310,0.00113685,3146.4,3146.0,0.00113685]
[1641696352013,3.6668,3147.8,3146.3,6.58017282]
[1641696352209,0.79465,3147.9,3146.4,2.49478806]
[1641696352408,0.79464,3147.1,3146.4,2.49478806]
[1641696352610,0.00738951,3147.7,3146.4,2.49478806]
[1641696352810,0.00341054,3147.0,3146.4,2.49478806]
[1641696353069,0.00682108,3147.6,3146.4,2.49478806]
[1641696353259,0.00284212,3146.9,3146.4,2.49478806]
[1641696353459,0.00625266,3147.5,3146.4,2.49478806]
[1641696353659,0.0022737,3146.8,3146.4,2.79478806]
[1641696353859,0.00568424,3147.4,3146.4,2.79478806]
[1641696354059,0.00170527,3146.7,3146.4,2.79478806]
[1641696354259,0.00511581,3147.3,3146.4,2.79478806]
[1641696354460,0.00113685,3146.6,3146.4,2.79478806]
[1641696354762,0.00454739,3147.2,3146.5,2.2732379]
[1641696355159,0.00397897,3147.1,3146.3,2.45509501]
[1641696355559,0.00341054,3147.0,3146.3,2.45509501]
[1641696355958,0.00284212,3146.9,3146.3,2.45509501]
[1641696356161,0.00284212,3146.9,3146.3,3.05509501]
[1641696356359,0.0022737,3146.8,3146.3,3.05509501]
[1641696356807,0.00170527,3146.7,3146.3,3.05509501]
[1641696357108,0.00113685,3146.6,3146.3,3.05509501]
[1641696357312,0.00113685,3146.6,3146.3,2.45509501]
[1641696357510,0.00454739,3147.2,3146.2,3.06109164]
[1641696357914,0.00397897,3147.1,3146.2,1.47174404]
[1641696358113,0.79881897,3147.1,3146.2,1.47174404]
[1641696358311,0.00341054,3147.0,3146.3,1.47174404]
[1641696358712,0.00284212,3146.9,3146.3,1.47174404]
[1641696358913,0.79481,3146.4,3146.3,1.47174404]
[1641696359115,0.79481,3146.4,3146.0,1.47401773]
[1641696359314,1.58972,3146.6,3146.0,1.47401773]
[1641696359513,1.58972,3146.6,3146.1,0.00170527]
[1641696360661,0.0022737,3146.8,3146.0,2.8461393]
[1641696360962,0.00170527,3146.7,3146.1,0.00170527]
[1641696361356,0.00113685,3146.6,3146.1,0.00170527]
[1641696361758,1.58954,3146.9,3146.1,0.00170527]
[1641696361759,0.79475,3146.7,3146.1,0.00170527]
[1641696361959,0.0022737,3146.8,3146.3,1.47174404]
[1641696362157,0.00113685,3146.6,3146.3,1.47174404]
[1641696362357,1.64027174,3146.6,3146.3,1.47174404]
[1641696362758,0.79481,3146.5,3146.3,1.47174404]
[1641696363559,2.38441,3147.4,3146.3,1.47174404]
[1641696363760,0.79485,3147.0,3146.3,1.47174404]
[1641696363960,0.79485,3147.0,3146.4,0.0022737]
[1641696364706,0.79485,3147.0,3146.3,0.00284212]
[1641696364907,0.00227369,3147.2,3145.5,3.67751245]
[1641696364908,1.42141503,3146.2,3145.5,3.67751245]
[1641696365112,0.458,3146.1,3145.5,3.67751245]
[1641696365307,0.458,3146.1,3145.6,0.00397897]
[1641696365506,4.65,3146.0,3145.5,3.67751245]
[1641696365707,5.108,3146.0,3145.5,3.67751245]
[1641696365906,1.00170527,3145.9,3145.5,3.67751245]
[1641696366106,1.00170527,3145.9,3144.7,0.05005]
[1641696366107,0.79524,3145.5,3144.7,0.05005]
[1641696366306,1.5905,3145.5,3144.7,0.05005]
[1641696366506,0.458,3145.6,3144.8,0.00454738]
[1641696367106,0.79521,3144.9,3144.8,0.00454738]
[1641696368161,1.59047,3145.0,3144.5,3.66810983]
[1641696368560,0.79524,3144.7,3144.6,0.00113685]
[1641696368959,2.04861,3144.8,3144.2,0.1828]
[1641696368960,0.7955024,3144.6,3144.2,0.1828]
[1641696369163,0.7955,3144.4,3144.3,0.00170527]
[1641696369968,0.7955,3144.4,3144.2,0.1828]
[1641696370574,1.54099,3144.4,3144.2,0.1828]
[1641696370768,0.79549,3144.4,3144.2,0.1828]
[1641696372423,0.74549,3144.4,3144.2,0.1828]
[1641696373424,0.79547,3144.6,3144.2,0.1828]
[1641696373823,0.00113685,3144.5,3143.8,0.103]
[1641696374024,0.79553,3143.9,3143.8,0.103]
[1641696374825,0.79553,3143.9,3143.3,6.16]
[1641696374826,2.9,3143.8,3143.3,6.16]
[1641696375033,2.9,3143.8,3142.4,5.42929913]
[1641696375034,3.50562018,3143.3,3142.4,5.42929913]
[1641696375228,4.6,3143.2,3142.9,3.67973991]
[1641696375425,4.6,3143.2,3142.2,5.42929913]
[1641696375426,2.55,3143.1,3142.2,5.42929913]
[1641696375661,1.16797882,3142.7,3142.2,5.42929913]
[1641696375860,4.6,3142.5,3142.2,6.16]
[1641696376061,0.458,3142.4,3142.2,6.16]
[1641696376457,0.458,3142.4,3141.8,6.91]
[1641696376658,0.458,3142.4,3141.8,13.07]
[1641696376859,0.79611,3142.7,3141.9,0.01364216]
[1641696377057,0.79611,3142.7,3141.9,1.21933799]
[1641696377460,0.74611,3142.7,3142.0,0.01307374]
[1641696377658,0.74611,3142.7,3141.8,13.07]
[1641696377659,0.74611,3142.7,3141.8,6.16]
[1641696377859,0.00341054,3142.6,3141.8,6.16]
[1641696378060,0.46141054,3142.6,3141.8,6.096]
[1641696378262,0.00284212,3142.5,3141.8,6.096]
[1641696378458,0.458,3142.4,3141.8,6.096]
[1641696378659,0.00227369,3142.4,3141.8,6.096]
[1641696378859,0.79598,3142.2,3141.8,6.096]
[1641696379059,0.79593,3142.9,3141.8,6.096]
[1641696379060,1.591894,3143.0,3141.9,3.95]
[1641696379311,0.458,3142.8,3141.9,3.95227369]
[1641696379512,0.00227369,3142.7,3141.9,3.95227369]
[1641696379912,1.59196,3142.5,3141.9,0.00227369]
[1641696380919,0.458,3143.0,3141.9,0.00227369]
[1641696380920,0.42506319,3143.0,3142.0,4.75]
[1641696381113,0.42506319,3143.0,3141.9,2.17812967]
[1641696381312,0.00170527,3142.9,3142.1,0.00284212]
[1641696381516,0.00170527,3142.9,3142.0,0.00341054]
[1641696381713,0.00113685,3142.8,3141.9,3.61796594]
[1641696382015,0.79993896,3142.7,3141.9,3.61796594]
[1641696382414,0.00341054,3142.6,3141.9,2.12756125]
[1641696382612,1.59520054,3142.6,3141.9,2.12756125]
[1641696382812,0.00284212,3142.5,3141.9,2.12756125]
[1641696383067,0.79873212,3142.5,3141.9,4.21796594]
[1641696383260,0.00227369,3142.4,3141.9,4.21796594]
[1641696383465,0.00227369,3142.4,3142.3,5.90630373]
[1641696383659,2.77122705,3143.3,3142.3,5.2]
[1641696383858,2.77122705,3143.3,3142.3,6.69040469]
[1641696384063,10.42715,3144.1,3142.4,5.93680786]
[1641696384064,2.38737,3143.6,3142.4,5.93680786]
[1641696384259,3.18314,3143.6,3142.5,2.43680786]
[1641696384459,0.00113685,3143.2,3142.5,2.43680786]
[1641696384659,0.00113685,3143.2,3142.6,0.00227369]
[1641696384860,1.59154,3143.1,3142.6,0.00227369]
[1641696385261,1.59154,3143.1,3142.5,0.00284211]
[1641696385662,0.458,3143.0,3142.5,0.00284211]
[1641696385860,0.458,3143.0,3142.0,2.43680786]
[1641696385861,0.458,3143.0,3142.1,0.00511581]
[1641696387209,0.458,3143.0,3141.7,0.0073895]
[1641696389011,0.458,3143.0,3141.8,1.49040469]
[1641696389412,0.458,3143.0,3141.9,0.00625265]
[1641696389810,0.458,3143.0,3141.9,2.03926536]
[1641696390111,0.458,3143.0,3142.0,0.00568423]
[1641696390566,0.458,3143.0,3141.8,1.49722577]
[1641696390758,0.458,3143.0,3141.9,2.06660674]
[1641696390960,0.79574,3143.0,3142.0,0.87652328]
[1641696391158,0.79574,3143.0,3142.2,0.01260367]
[1641696391558,0.79574,3143.0,3142.3,0.00397896]
[1641696392158,1.59270685,3143.2,3142.2,0.00454738]
[1641696392159,1.25387,3143.2,3142.2,0.00454738]
[1641696392360,1.25387,3143.2,3142.2,0.00568423]
[1641696392960,0.79574,3143.0,3142.2,0.00568423]
[1641696393159,0.79574,3143.0,3142.0,0.00682108]
[1641696393560,0.458,3142.9,3142.0,0.00682108]
[1641696393762,8.66226558,3142.8,3141.9,1.36012577]
[1641696393963,5.2,3142.6,3140.9,9.88328553]
[1641696394164,0.01297313,3142.4,3140.9,9.88328553]
[1641696394408,0.8925807,3141.3,3141.0,0.00568424]
[1641696394608,3.1849141,3142.2,3141.0,0.00568424]
[1641696394609,1.0,3142.1,3141.1,2.41254401]
[1641696394908,1.458,3142.1,3141.2,0.00454739]
[1641696395110,2.84668,3142.1,3141.2,0.00454739]
[1641696395512,1.0,3142.0,3141.2,0.00454739]
[1641696395711,0.458,3141.9,3141.2,0.00454739]
[1641696395911,0.458,3141.9,3140.4,3.72328553]
[1641696395912,5.0,3141.8,3140.4,3.72328553]
[1641696396110,1.458,3141.7,3140.5,0.00397896]
[1641696396310,1.46084212,3141.7,3140.5,0.00397896]
[1641696396513,0.0022737,3141.6,3140.5,0.00397896]
[1641696396710,1.89925105,3142.0,3140.6,4.45]
[1641696396910,1.89925105,3142.0,3140.4,0.00682109]
[1641696396911,0.458,3141.9,3140.4,0.00682109]
[1641696397110,0.458,3141.9,3140.7,0.00511582]
[1641696397111,0.00113684,3141.8,3140.7,0.00511582]
[1641696397313,0.458,3141.7,3140.4,0.00682109]
[1641696397513,6.482,3141.7,3140.4,0.00682109]
[1641696397713,3.0,3141.4,3140.2,9.88328553]
[1641696397912,5.658,3141.3,3140.2,9.84010662]
[1641696398160,0.46311581,3141.3,3140.2,6.06682109]
[1641696398358,0.46311581,3141.3,3139.8,3.72328553]
[1641696398359,1.00454739,3141.2,3139.8,3.72328553]
[1641696398656,0.46197897,3141.1,3139.9,0.00284211]
[1641696398856,0.458,3141.0,3139.9,0.00284211]
[1641696399060,0.46141054,3141.0,3139.9,0.00284211]
[1641696399258,0.00284212,3140.9,3139.9,0.00284211]
[1641696399458,0.458,3140.8,3139.8,0.00341054]
[1641696399658,0.4602737,3140.8,3140.1,0.92323284]
[1641696399862,4.43510258,3141.6,3140.2,5.2]
[1641696400060,0.458,3141.5,3140.7,0.01298746]
[1641696400259,0.00113685,3140.9,3140.7,0.01298746]
[1641696400660,1.59248,3141.2,3140.7,2.41998134]
[1641696400860,0.00568424,3141.7,3141.1,0.70554965]
[1641696401060,0.0022737,3141.1,3140.9,2.40699388]
[1641696401260,0.00511582,3141.6,3140.8,5.2]
[1641696401459,0.00170527,3141.0,3140.9,2.40699388]
[1641696401662,0.00454739,3141.5,3140.7,2.40699388]
[1641696401913,0.00170527,3141.0,3140.7,2.40699388]
[1641696402212,0.79619,3141.1,3140.7,2.40699388]
[1641696402611,0.00170527,3141.0,3140.7,6.13027941]
[1641696403312,0.00170527,3141.0,3140.7,3.34087575]
[1641696404111,0.00170527,3141.0,3140.8,3.72328553]
[1641696404315,0.00170527,3141.0,3140.9,2.23127449]
[1641696404912,1.25425,3141.9,3141.0,3.35]
[1641696405114,1.25425,3141.9,3141.1,2.03419984]
[1641696405315,0.0022737,3141.4,3141.1,2.03892429]
[1641696405561,1.97834564,3142.3,3141.2,3.45]
[1641696405757,0.458,3142.2,3141.3,2.09690812]
[1641696405957,0.00227369,3141.8,3141.2,3.45113685]
[1641696406257,0.41027369,3141.9,3141.3,2.03022531]
[1641696406457,1.25421,3141.9,3141.3,0.00284212]
[1641696406760,0.458,3141.9,3141.1,0.00397896]
[1641696407159,0.00113685,3142.0,3141.7,0.74247583]
[1641696407458,1.59184,3142.5,3141.8,3.9292739]
[1641696407657,2.38797,3142.8,3141.8,3.93041075]
[1641696407857,0.00284212,3142.5,3141.8,5.13497879]
[1641696408159,2.38797,3142.8,3141.8,0.00113685]
[1641696408160,0.00227369,3142.4,3141.8,0.00113685]
[1641696408556,0.00170527,3142.3,3141.8,0.00113685]
[1641696408756,0.79611,3142.2,3141.8,0.00113685]
[1641696408958,0.79724685,3142.2,3141.8,0.00113685]
[1641696409159,0.79724685,3142.2,3141.5,3.72612765]
[1641696409410,0.79724685,3142.2,3141.6,0.00227369]
[1641696410212,0.79724685,3142.2,3142.1,3.39271872]
[1641696410413,0.00113685,3142.2,3142.1,3.39271872]
[1641696410814,5.9783,3143.8,3143.2,0.89093478]
[1641696411015,4.1687,3144.2,3143.2,0.7611]
[1641696411317,3.18363,3143.8,3143.2,0.7611]
[1641696411815,1.59134,3143.4,3143.2,0.7611]
[1641696412221,0.00625265,3143.3,3142.4,0.79094195]
[1641696412415,0.79575,3143.1,3142.4,0.79094195]
[1641696412616,0.00568423,3143.2,3142.8,0.7955793]
[1641696412815,0.00454738,3143.0,3142.5,3.723]
[1641696413067,2.38713,3144.0,3142.6,5.2]
[1641696413261,0.79578,3143.7,3142.6,5.20284212]
[1641696413461,0.79571,3143.2,3142.7,0.0022737]
[1641696413662,0.79571,3143.2,3142.7,3.72555923]
[1641696413860,0.79571,3143.2,3142.7,3.72328553]
[1641696414061,0.79571,3143.2,3142.8,0.00170527]
[1641696414663,1.59132,3143.5,3143.4,1.0014679]
[1641696414865,1.59132,3143.5,3142.8,0.00170527]
[1641696415061,1.59359369,3143.5,3142.8,0.00170527]
[1641696415262,0.00170527,3143.4,3142.7,0.0022737]
[1641696415463,0.79571,3143.2,3142.7,0.0022737]
[1641696416267,2.38742,3143.6,3142.7,0.0022737]
[1641696416463,0.79586,3143.4,3142.7,0.00341054]
[1641696416662,0.79586,3143.4,3142.6,0.00397896]
[1641696417315,0.79571,3143.2,3142.5,0.00454738]
[1641696418019,1.18332,3143.3,3142.4,0.00511581]
[1641696418315,2.18332,3143.3,3142.2,0.00625265]
[1641696418918,0.79571,3143.2,3142.2,1.06463322]
[1641696419417,0.79571,3143.2,3142.3,0.00568423]
[1641696419418,1.25371,3143.2,3142.3,0.00568423]
[1641696419817,1.25371,3143.2,3141.9,0.00795792]
[1641696420318,1.25371,3143.2,3142.0,1.38647196]
[1641696420598,1.25371,3143.2,3142.1,0.00682108]
[1641696421192,0.81022981,3143.3,3142.2,3.4]
[1641696421390,0.458,3143.2,3142.2,3.4]
[1641696421590,0.458,3143.2,3142.3,0.00568423]
[1641696421790,1.25371,3143.2,3142.3,0.00568423]
[1641696422190,1.25371,3143.2,3142.1,0.00682108]
[1641696422393,1.25371,3143.2,3141.9,0.00795792]
[1641696423395,1.25371,3143.2,3142.1,1.33801869]
[1641696423795,1.25371,3143.2,3142.2,0.00625265]
[1641696425612,2.04962,3143.2,3142.2,0.00625265]
[1641696426011,2.04962,3143.2,3141.8,0.01270286]
[1641696426012,2.04962,3143.2,3141.9,0.00795792]
[1641696426212,2.84554,3143.2,3141.9,0.00795792]
[1641696427713,3.6415057,3143.2,3141.9,0.00795792]
[1641696428760,1.0,3143.1,3141.9,0.00795792]
[1641696428963,0.458,3143.0,3141.9,0.00795792]
[1641696429162,3.0,3142.8,3141.9,0.00795792]
[1641696429360,0.458,3142.7,3141.9,0.00795792]
[1641696429561,2.25417,3142.7,3141.9,0.00795792]
[1641696429761,0.05778104,3142.6,3141.9,0.00795792]
[1641696429962,0.458,3142.5,3141.6,1.47465528]
[1641696430163,0.46141054,3142.5,3141.6,1.47465528]